fUSD/lending_fUSD_20251105
["ID","MTS","AMOUNT","RATE_DAILY","PERIOD"]
[393199186,1762312250919,-151.0,0.00038266,31]
[393199187,1762312250929,-151.0,0.00038266,31]
[393199188,1762312250938,-151.0,0.00038266,31]
[393199189,1762312250948,-151.0,0.00038266,31]
[393199190,1762312250958,-151.0,0.00038266,31]
[393199191,1762312250968,-195.05287,0.00038266,31]
[393199192,1762312250978,-151.0,0.00038266,31]
[393199193,1762312250988,-151.0,0.00038266,31]
[393199194,1762312250997,-151.0,0.00038266,31]
[393199195,1762312251007,-151.0,0.00038266,31]
[393199196,1762312251017,-151.0,0.00038266,31]
[393199197,1762312251027,-151.0,0.00038266,31]
[393199198,1762312251037,-278.241517,0.00038266,31]
[393199199,1762312251046,-151.0,0.00038266,31]
[393199200,1762312251056,-153.730207,0.00038266,31]
[393199201,1762312251066,-151.0,0.00038266,31]
[393199202,1762312251076,-151.0,0.00038266,31]
[393199203,1762312251086,-151.0,0.00038266,31]
[393199204,1762312251096,-151.0,0.00038266,31]
[393199205,1762312251105,-151.000002,0.00038266,31]
[393199206,1762312251115,-162.850782,0.00038266,31]
[393199207,1762312251125,-151.0,0.00038266,31]
[393199208,1762312251135,-151.0,0.00038266,31]
[393199209,1762312251144,-151.0,0.00038266,31]
[393199210,1762312251154,-264.108875,0.00038266,31]
[393199211,1762312251164,-156.755722,0.00038266,31]
[393199212,1762312251174,-264.108875,0.00038266,31]
[393199213,1762312251184,-264.108875,0.00038266,31]
[393199214,1762312251194,-264.108875,0.00038266,31]
[393199215,1762312251204,-264.108875,0.00038266,31]
[393199216,1762312251214,-264.108875,0.00038266,31]
[393199217,1762312251224,-264.108875,0.00038266,31]
[393199218,1762312251398,-264.108875,0.00038266,31]
[393199219,1762312251412,-264.108875,0.00038266,31]
[393199220,1762312251422,-264.108875,0.00038266,31]
[393199221,1762312251431,-264.108875,0.00038266,31]
[393199222,1762312251442,-264.108875,0.00038266,31]
[393199223,1762312251451,-264.108875,0.00038266,31]
[393199224,1762312251460,-159.320944,0.00038266,31]
[393199225,1762312251469,-264.108875,0.00038266,31]
[393199226,1762312251479,-264.108875,0.00038266,31]
[393199227,1762312251488,-264.108875,0.00038266,31]
[393199228,1762312251497,-264.108875,0.00038266,31]
[393199229,1762312251506,-264.108875,0.00038266,31]
[393199230,1762312251516,-264.108875,0.00038266,31]
[393199231,1762312251525,-264.108879,0.00038266,31]
[393199232,1762312251534,-157.122541,0.00038266,31]
[393199233,1762312251544,-151.00001,0.00038266,31]
[393199234,1762312251553,-151.0,0.00038266,31]
[393199235,1762312251563,-151.0,0.00038266,31]
[393199236,1762312251573,-187.221612,0.00038266,31]
[393199237,1762312251583,-151.0,0.00038266,31]
[393199238,1762312251593,-151.000013,0.00038266,31]
[393199239,1762312251602,-23842.08846061,0.00038268,31]
[393199240,1762312251611,-151.0,0.00038268,31]
[393199241,1762312251620,-151.0,0.00038268,31]
[393199242,1762312251630,-151.0,0.00038268,31]
[393199243,1762312251639,-151.0,0.00038268,31]
[393199244,1762312251648,-151.0,0.00038268,31]
[393199245,1762312251657,-151.0,0.00038268,31]
[393199246,1762312251666,-151.0,0.00038268,31]
[393199247,1762312251676,-151.0,0.00038268,31]
[393199248,1762312251685,-151.0,0.00038268,31]
[393199249,1762312251694,-151.0,0.00038268,31]
[393199250,1762312251703,-279.732024,0.00038268,31]
[393199251,1762312251713,-151.0,0.00038268,31]
[393199252,1762312251722,-151.0,0.00038268,31]
[393199253,1762312251732,-151.0,0.00038268,31]
[393199254,1762312251742,-568.364366,0.00038268,31]
[393199255,1762312251752,-151.0,0.00038268,31]
[393199256,1762312251761,-568.364366,0.00038268,31]
[393199257,1762312251770,-151.0,0.00038268,31]
[393199258,1762312251779,-568.364366,0.00038268,31]
[393199259,1762312251789,-151.0,0.00038268,31]
[393199260,1762312251799,-568.364366,0.00038268,31]
[393199261,1762312251809,-151.0,0.00038268,31]
[393199262,1762312251818,-568.364366,0.00038268,31]
[393199263,1762312251838,-151.0,0.00038268,31]
[393199264,1762312251848,-151.0,0.00038268,31]
[393199265,1762312251858,-568.364366,0.00038268,31]
[393199266,1762312251868,-233.420837,0.00038268,31]
[393199267,1762312251879,-151.0,0.00038268,31]
[393199268,1762312251889,-151.0,0.00038268,31]
[393199269,1762312251900,-568.364366,0.00038268,31]
[393199270,1762312251912,-151.0,0.00038268,31]
[393199271,1762312251923,-151.0,0.00038268,31]
[393199272,1762312251933,-568.364366,0.00038268,31]
[393199273,1762312251944,-159.712931,0.00038268,31]
[393199274,1762312251954,-151.0,0.00038268,31]
[393199275,1762312251965,-151.0,0.00038268,31]
[393199276,1762312251975,-568.364366,0.00038268,31]
[393199277,1762312251985,-151.0,0.00038268,31]
[393199278,1762312251995,-568.364366,0.00038268,31]
[393199279,1762312252005,-151.0,0.00038268,31]
[393199280,1762312252016,-568.364366,0.00038268,31]
[393199281,1762312252026,-151.0,0.00038268,31]
[393199282,1762312252036,-568.364366,0.00038268,31]
[393199283,1762312252046,-151.0,0.00038268,31]
[393199284,1762312252056,-151.0,0.00038268,31]
[393199285,1762312252065,-151.0,0.00038268,31]
[393199286,1762312252075,-568.364366,0.00038268,31]
[393199287,1762312252085,-161.147188,0.00038268,31]
[393199288,1762312252096,-151.0,0.00038268,31]
[393199289,1762312252110,-151.0,0.00038268,31]
[393199290,1762312252129,-568.364366,0.00038268,31]
[393199291,1762312252139,-151.0,0.00038268,31]
[393199292,1762312252149,-151.0,0.00038268,31]
[393199293,1762312252159,-568.364366,0.00038268,31]
[393199294,1762312252169,-151.0,0.00038268,31]
[393199295,1762312252179,-151.0,0.00038268,31]
[393199296,1762312252192,-151.0,0.00038268,31]
[393199297,1762312252204,-568.364366,0.00038268,31]
[393199298,1762312252214,-151.0,0.00038268,30]
[393199299,1762312252224,-151.0,0.00038268,31]
[393199300,1762312252234,-185.285369,0.00038268,31]
[393199301,1762312252244,-568.364366,0.00038268,31]
[393199302,1762312252255,-151.0,0.00038268,31]
[393199303,1762312252269,-161.327678,0.00038268,30]
[393199304,1762312252280,-151.0,0.00038268,31]
[393199305,1762312252290,-568.364366,0.00038268,31]
[393199306,1762312252303,-151.0,0.00038268,31]
[393199307,1762312252314,-160.59943,0.00038268,31]
[393199308,1762312252324,-568.364366,0.00038268,31]
[393199309,1762312252335,-151.0,0.00038268,31]
[393199310,1762312252345,-568.364367,0.00038268,31]
[393199311,1762312252356,-154.790271,0.00038268,31]
[393199312,1762312252366,-151.0,0.00038268,31]
[393199313,1762312252379,-151.0,0.00038268,31]
[393199314,1762312252389,-151.0,0.00038268,31]
[393199315,1762312252402,-151.0,0.00038268,31]
[393199316,1762312252412,-151.0,0.00038268,31]
[393199317,1762312252422,-151.0,0.00038268,31]
[393199318,1762312252431,-250.141516,0.00038268,31]
[393199319,1762312252442,-151.0,0.00038268,31]
[393199320,1762312252452,-151.0,0.00038268,31]
[393199321,1762312252462,-151.0,0.00038268,31]
[393199322,1762312252472,-153.899318,0.00038268,31]
[393199323,1762312252482,-151.0,0.00038268,31]
[393199324,1762312252492,-151.0,0.00038268,31]
[393199325,1762312252503,-151.0,0.00038268,31]
[393199326,1762312252513,-151.0,0.00038268,31]
[393199327,1762312252523,-151.0,0.00038268,31]
[393199328,1762312252533,-151.0,0.00038268,31]
[393199329,1762312252543,-151.0,0.00038268,31]
[393199330,1762312252553,-151.0,0.00038268,31]
[393199331,1762312252563,-151.0,0.00038268,31]
[393199332,1762312252574,-255.872056,0.00038268,31]
[393199333,1762312252585,-151.0,0.00038268,31]
[393199334,1762312252598,-157.714772,0.00038268,31]
[393199335,1762312252608,-151.0,0.00038268,31]
[393199336,1762312252618,-151.0,0.00038268,31]
[393199337,1762312252629,-151.0,0.00038268,31]
[393199338,1762312252639,-151.0,0.00038268,31]
[393199339,1762312252648,-151.0,0.00038268,31]
[393199340,1762312252659,-151.0,0.00038268,31]
[393199341,1762312252668,-153.808122,0.00038268,31]
[393199342,1762312252678,-151.0,0.00038268,30]
[393199343,1762312252687,-157.88646,0.00038268,30]
[393199344,1762312252697,-151.0,0.00038268,31]
[393199345,1762312252707,-151.0,0.00038268,31]
[393199346,1762312252717,-153.797533,0.00038268,31]
[393199347,1762312252727,-151.0,0.00038268,31]
[393199348,1762312252737,-151.0,0.00038268,31]
[393199349,1762312252747,-151.0,0.00038268,31]
[393199350,1762312252758,-151.0,0.00038268,31]
[393199351,1762312252767,-151.0,0.00038268,31]
[393199352,1762312252778,-151.0,0.00038268,31]
[393199353,1762312252791,-151.0,0.00038268,31]
[393199354,1762312252801,-151.0,0.00038268,31]
[393199355,1762312252812,-284.999809,0.00038268,31]
[393199356,1762312252823,-155.375493,0.00038268,31]
[393199357,1762312252834,-173.764615,0.00038268,31]
[393199358,1762312252844,-173.764615,0.00038268,31]
[393199359,1762312252855,-173.764615,0.00038268,31]
[393199360,1762312252865,-173.764615,0.00038268,31]
[393199361,1762312252875,-173.764615,0.00038268,31]
[393199362,1762312252884,-173.764615,0.00038268,31]
[393199363,1762312252894,-173.764615,0.00038268,31]
[393199364,1762312252904,-173.764615,0.00038268,31]
[393199365,1762312252914,-173.764615,0.00038268,31]
[393199366,1762312252923,-173.764615,0.00038268,31]
[393199367,1762312252934,-173.764615,0.00038268,31]
[393199368,1762312252945,-173.764615,0.00038268,31]
[393199369,1762312252955,-173.764615,0.00038268,31]
[393199370,1762312252967,-173.764615,0.00038268,31]
[393199371,1762312252976,-173.764615,0.00038268,31]
[393199372,1762312252986,-173.764615,0.00038268,31]
[393199373,1762312252999,-173.764615,0.00038268,31]
[393199374,1762312253008,-173.764615,0.00038268,31]
[393199375,1762312253018,-173.764615,0.00038268,31]
[393199376,1762312253028,-173.764619,0.00038268,31]
[393199377,1762312253038,-151.0,0.00038268,31]
[393199378,1762312253048,-151.0,0.00038268,31]
[393199379,1762312253058,-151.0,0.00038268,31]
[393199380,1762312253068,-153.340919,0.00038268,31]
[393199381,1762312253078,-168.849809,0.00038268,31]
[393199382,1762312253088,-151.0,0.00038268,31]
[393199383,1762312253098,-151.0,0.00038268,31]
[393199384,1762312253108,-151.0,0.00038268,31]
[393199385,1762312253119,-151.0,0.00038268,31]
[393199386,1762312253129,-151.0,0.00038268,31]
[393199387,1762312253140,-151.0,0.00038268,31]
[393199388,1762312253150,-151.0,0.00038268,31]
[393199389,1762312253160,-151.0,0.00038268,31]
[393199390,1762312253170,-151.0,0.00038268,31]
[393199391,1762312253180,-182.039707,0.00038268,31]
[393199392,1762312253190,-151.0,0.00038268,31]
[393199393,1762312253201,-151.0,0.00038268,31]
[393199394,1762312253211,-151.0,0.00038268,31]
[393199395,1762312253222,-158.55006,0.00038268,31]
[393199396,1762312253232,-162.038573,0.00038268,31]
[393199397,1762312253242,-151.0,0.00038268,31]
[393199398,1762312253252,-151.0,0.00038268,31]
[393199399,1762312253262,-151.0,0.00038268,31]
[393199400,1762312253272,-158.274129,0.00038268,31]
[393199401,1762312253282,-151.0,0.00038268,31]
[393199402,1762312253292,-151.0,0.00038268,31]
[393199403,1762312253305,-252.467454,0.00038268,31]
[393199404,1762312253316,-151.0,0.00038268,31]
[393199405,1762312253327,-252.467454,0.00038268,31]
[393199406,1762312253337,-151.0,0.00038268,31]
[393199407,1762312253347,-151.0,0.00038268,31]
[393199408,1762312253358,-252.467454,0.00038268,31]
[393199409,1762312253369,-151.0,0.00038268,31]
[393199410,1762312253379,-151.0,0.00038268,31]
[393199411,1762312253392,-252.467454,0.00038268,31]
[393199412,1762312253402,-201.136495,0.00038268,31]
[393199413,1762312253412,-151.0,0.00038268,31]
[393199414,1762312253422,-252.467454,0.00038268,31]
[393199415,1762312253432,-211.228568,0.00038268,31]
[393199416,1762312253442,-151.0,0.00038268,31]
[393199417,1762312253452,-252.467454,0.00038268,31]
[393199418,1762312253463,-151.0,0.00038268,31]
[393199419,1762312253473,-252.467454,0.00038268,31]
[393199420,1762312253483,-151.0,0.00038268,31]
[393199421,1762312253494,-151.0,0.00038268,30]
[393199422,1762312253505,-252.467454,0.00038268,31]
[393199423,1762312253515,-151.0,0.00038268,31]
[393199424,1762312253525,-151.0,0.00038268,30]
[393199425,1762312253535,-252.467454,0.00038268,31]
[393199426,1762312253545,-151.0,0.00038268,31]
[393199427,1762312253555,-151.0,0.00038268,30]
[393199428,1762312253565,-252.467454,0.00038268,31]
[393199429,1762312253576,-151.0,0.00038268,30]
[393199430,1762312253586,-252.467454,0.00038268,31]
[393199431,1762312253596,-151.0,0.00038268,31]
[393199432,1762312253607,-151.0,0.00038268,30]
[393199433,1762312253617,-252.467454,0.00038268,31]
[393199434,1762312253628,-151.0,0.00038268,31]
[393199435,1762312253640,-151.0,0.00038268,30]
[393199436,1762312253651,-252.467454,0.00038268,31]
[393199437,1762312253661,-154.277202,0.00038268,31]
[393199438,1762312253672,-151.0,0.00038268,30]
[393199439,1762312253682,-252.467454,0.00038268,31]
[393199440,1762312253692,-151.0,0.00038268,30]
[393199441,1762312253702,-252.467454,0.00038268,31]
[393199442,1762312253712,-203.326945,0.00038268,30]
[393199443,1762312253722,-252.467454,0.00038268,31]
[393199444,1762312253732,-252.467454,0.00038268,31]
[393199445,1762312253742,-252.467454,0.00038268,31]
[393199446,1762312253752,-252.467454,0.00038268,31]
[393199447,1762312253762,-252.46746332,0.00038268,31]
[393199448,1762312253772,-151.0,0.00038268,31]
[393199449,1762312253782,-151.0,0.00038268,31]
[393199450,1762312253792,-151.0,0.00038268,31]
[393199451,1762312253801,-151.0,0.00038268,31]
[393199452,1762312253811,-165.473752,0.00038268,31]
[393199453,1762312253820,-162.481363,0.00038268,31]
[393199454,1762312253831,-151.0,0.00038268,31]
[393199455,1762312253840,-151.0,0.00038268,31]
[393199456,1762312253850,-151.0,0.00038268,31]
[393199457,1762312253860,-151.0,0.00038268,31]
[393199458,1762312253947,-151.0,0.00038268,31]
[393199459,1762312253958,-161.96403,0.00038268,31]
[393199460,1762312253967,-151.0,0.00038268,31]
[393199461,1762312253977,-151.0,0.00038268,31]
[393199462,1762312253987,-155.982345,0.00038268,31]
[393199463,1762312253997,-151.0,0.00038268,31]
[393199464,1762312254006,-260.768611,0.00038268,31]
[393199465,1762312254016,-151.0,0.00038268,31]
[393199466,1762312254026,-151.0,0.00038268,31]
[393199467,1762312254036,-151.0,0.00038268,31]
[393199468,1762312254046,-151.0,0.00038268,31]
[393199469,1762312254055,-151.0,0.00038268,31]
[393199470,1762312254065,-151.0,0.00038268,31]
[393199471,1762312254074,-154.882133,0.00038268,31]
[393199472,1762312254084,-156.384693,0.00038268,31]
[393199473,1762312254093,-151.0,0.00038268,31]
[393199474,1762312254104,-151.0,0.00038268,31]
[393199475,1762312254114,-151.0,0.00038268,31]
[393199476,1762312254124,-151.0,0.00038268,31]
[393199477,1762312254134,-151.0,0.00038268,31]
[393199478,1762312254144,-151.0,0.00038268,31]
[393199479,1762312254154,-158.091425,0.00038268,31]
[393199480,1762312254164,-253.379154,0.00038268,31]
[393199481,1762312254174,-152.809418,0.00038268,31]
[393199482,1762312254184,-151.0,0.00038268,31]
[393199483,1762312254195,-151.0,0.00038268,31]
[393199484,1762312254204,-151.0,0.00038268,31]
[393199485,1762312254214,-151.0,0.00038268,31]
[393199486,1762312254224,-192.971225,0.00038268,31]
[393199487,1762312254234,-28434.99435551,0.00038268,2]
[393199488,1762312254244,-409.23427518,0.00038268,2]
[393199489,1762312254253,-1507.17484229,0.00038268,2]
[393199490,1762312254263,-24780.4254191,0.00038268,2]
[393199491,1762312254273,-20603.43134158,0.00038268,2]
[393199492,1762312254282,-2479.01207057,0.00038268,2]
[393199493,1762312254292,-877.75653905,0.00038268,2]
[393199494,1762312254301,-206.23589129,0.00038268,2]
[393199495,1762312254314,-287.52036985,0.00038268,2]
[393199496,1762312254323,-5781.98507516,0.00038268,2]
[393199497,1762312254333,-4656.35024835,0.00038268,2]
[393199498,1762312254343,-1051.84750394,0.00038268,2]
[393199499,1762312254353,-2209.04879974,0.00038268,2]
[393199500,1762312254362,-890.95575805,0.00038268,2]
[393199501,1762312254372,-468.28748949,0.00038268,2]
[393199502,1762312254382,-150.0,0.00038268,2]
[393199503,1762312254392,-160.0,0.00038268,2]
[393199504,1762312254401,-12833.01481355,0.00038268,2]
[393199505,1762312254411,-202.82378801,0.00038268,2]
[393199506,1762312254420,-755.12368909,0.00038268,2]
[393199507,1762312254430,-4266.0,0.00038268,2]
[393199508,1762312254439,-1348.42835836,0.00038268,2]
[393199509,1762312254448,-744.43241686,0.00038268,2]
[393199510,1762312254458,-151.80146081,0.00038268,2]
[393199511,1762312254467,-185.00798529,0.00038268,2]
[393199512,1762312254477,-3360.08288407,0.00038268,2]
[393199513,1762312254487,-977002.27700255,0.00038268,2]
[393199514,1762312254665,-1524.15,0.00038268,2]
[393199515,1762312254687,-327.78271081,0.00033777,15]
[393199516,1762312254696,-151.0,0.00038268,31]
[393199517,1762312254705,-25738.73093413,0.00038268,2]
[393199518,1762312254716,-4227.18361792,0.00038268,2]
[393199519,1762312254728,-21545.24867519,0.00038268,2]
[393199520,1762312254738,-14711.28391065,0.00038268,2]
[393199521,1762312254750,-21619.66019884,0.00038268,2]
[393199522,1762312254765,-302.91805561,0.00038268,2]
[393199523,1762312254869,-507.6,0.000254,2]
[393199524,1762312254887,-23.00716005,0.000254,2]
[393199525,1762312254896,-6473.0,0.00031569,2]
[393199526,1762312254906,-151.0,0.00038268,31]
[393199527,1762312254917,-151.0,0.00038268,31]
[393199528,1762312254928,-151.0,0.00038268,31]
[393199529,1762312254939,-151.0,0.00038268,31]
[393199530,1762312254949,-151.0,0.00038268,31]
[393199531,1762312254959,-151.0,0.00038268,31]
[393199532,1762312254968,-2239658.0681365,0.00038268,2]
[393199533,1762312254984,-1713.09733146,0.00034569,2]
[393199534,1762312255128,-287.34105002,0.00032882,2]
[393199535,1762312255139,-323.85492254,0.00034509,15]
[393199536,1762312255191,-3.92778827,0.00034509,15]
[393199537,1762312255201,-3525.98243845,0.00034569,2]
[393199538,1762312255212,-362.06844911,0.00034569,2]
[393199539,1762312255263,-500.0,0.00027397,2]
[393199540,1762312255272,-500.0,0.00027397,2]
[393199541,1762312255282,-871.85178098,0.00034569,2]
[393199542,1762312255292,-415.63,0.00036712,2]
[393199543,1762312255301,-150.0,0.00036712,2]
[393199544,1762312255314,-549.09,0.00036834,2]
[393199545,1762312255323,-698.44,0.00037123,2]
[393199546,1762312255333,-176.88,0.00037534,2]
[393199547,1762312255343,-6473.0,0.00037569,2]
[393199548,1762312255352,-202.035097,0.00038268,31]
[393199549,1762312255362,-151.0,0.00038268,31]
[393199550,1762312255371,-238.321837,0.00038268,31]
[393199551,1762312255382,-103073.75128502,0.00038268,2]
[393199552,1762312255393,-435.35250083,0.00038268,2]
[393199553,1762312255406,-1093.0,0.00038268,2]
[393199554,1762312255417,-102058.05190922,0.00038268,2]
[393199555,1762312255458,-287.34105002,0.00034203,2]
[393199556,1762312255467,-524.18510206,0.00038268,2]
[393199557,1762312325178,636.23644722,0.00038268,31]
[393199558,1762312325248,151.0,0.00038268,31]
[393199559,1762312325593,605.48830754,0.00038268,31]
[393199560,1762312325872,151.0,0.00038268,31]
[393199561,1762312326477,151.0,0.00038268,31]
[393199562,1762312327596,151.0,0.00038268,31]
[393199563,1762312328161,152.82810199,0.00038268,31]
[393199564,1762312329155,151.0,0.00038268,31]
[393199565,1762312330449,204.41326096,0.00038268,31]
[393199566,1762312331214,331.88542764,0.00038268,31]
[393199567,1762312331273,330.91950265,0.00038268,31]
[393199568,1762312332247,500.0,0.00038268,31]
[393199569,1762312332829,3000.0,0.00038268,31]
[393199570,1762312332885,500.0,0.00038268,31]
[393199571,1762312333445,3000.0,0.00038268,31]
[393199572,1762312333507,500.0,0.00038268,31]
[393199573,1762312334126,3000.0,0.00038268,31]
[393199574,1762312334597,500.0,0.00038268,31]
[393199575,1762312334652,239.84119403,0.00038268,31]
[393199576,1762312334708,3000.0,0.00038268,31]
[393199577,1762312335221,500.0,0.00038268,31]
[393199578,1762312335325,3000.0,0.00038268,31]
[393199579,1762312335859,500.0,0.00038268,31]
[393199580,1762312335923,3000.0,0.00038268,31]
[393199581,1762312413883,3727.25148217,0.00038268,120]
[393199583,1762312442004,555.76,0.00013699,2]
[393199585,1762312455250,3712.22,0.00038268,120]
[393199586,1762312455494,3712.22,0.00038268,120]
[393199587,1762312455732,3712.22,0.00038268,120]
[393199588,1762312455964,3712.22,0.00038268,120]
[393199589,1762312456198,3712.22,0.00038268,120]
[393199590,1762312456444,3712.22,0.00038268,120]
[393199591,1762312456680,3712.22,0.00038268,120]
[393199592,1762312456929,3712.22,0.00038268,120]
[393199593,1762312457173,3712.22,0.00038268,120]
[393199594,1762312457407,3712.22,0.00038268,120]
[393199595,1762312457646,3712.22,0.00038268,120]
[393199596,1762312457901,3712.22,0.00038268,120]
[393199597,1762312458140,3712.22,0.00038268,120]
[393199598,1762312458406,3712.22,0.00038268,120]
[393199599,1762312458646,3712.22,0.00038268,120]
[393199600,1762312458908,3712.22,0.00038268,120]
[393199601,1762312459154,3712.22,0.00038268,120]
[393199602,1762312459463,3712.22,0.00038268,120]
[393199603,1762312459719,3712.22,0.00038268,120]
[393199604,1762312460277,3712.22,0.00038268,120]
[393199605,1762312460338,3712.22,0.00038268,120]
[393199606,1762312460495,3712.22,0.00038268,120]
[393199607,1762312460744,3712.22,0.00038268,120]
[393199608,1762312460978,3712.27382199,0.00038268,120]
[393199609,1762312494992,5964.63,0.00017586,2]
[393199610,1762312591839,4714.84,0.00038268,120]
[393199611,1762312592099,4714.84,0.00038268,120]
[393199612,1762312592387,4714.84,0.00038268,120]
[393199613,1762312592827,4714.84,0.00038268,120]
[393199614,1762312593077,4714.84,0.00038268,120]
[393199615,1762312593361,4714.84,0.00038268,120]
[393199616,1762312593609,4714.84,0.00038268,120]
[393199617,1762312594299,4714.84,0.00038268,120]
[393199618,1762312594378,4714.84,0.00038268,120]
[393199619,1762312594445,4714.84,0.00038268,120]
[393199620,1762312594620,4714.84,0.00038268,120]
[393199621,1762312594855,4714.84,0.00038268,120]
[393199622,1762312595095,4714.84,0.00038268,120]
[393199623,1762312595329,4714.84,0.00038268,120]
[393199624,1762312595565,4714.84,0.00038268,120]
[393199625,1762312595805,4714.84,0.00038268,120]
[393199626,1762312596160,4714.84,0.00038268,120]
[393199627,1762312596398,4714.84,0.00038268,120]
[393199628,1762312596648,4714.84,0.00038268,120]
[393199629,1762312596896,4714.84,0.00038268,120]
[393199630,1762312597140,4714.84,0.00038268,120]
[393199631,1762312597376,4714.84,0.00038268,120]
[393199632,1762312597676,4714.84,0.00038268,120]
[393199633,1762312597940,4714.86056366,0.00038268,120]
[393199634,1762312618958,164.0,0.00030137,120]
[393199635,1762312628572,1543.04686183,0.00038268,120]
[393199636,1762312628671,500.0,0.00038268,120]
[393199637,1762312629290,500.0,0.00038268,120]
[393199638,1762312630593,315.49140799,0.00038268,120]
[393199639,1762312632486,334.5472959,0.00038268,120]
[393199642,1762312726690,500.0,0.00038266,120]
[393199643,1762312726966,500.0,0.00038266,120]
[393199644,1762312727203,500.0,0.00038266,120]
[393199645,1762312727451,509.04923689,0.00038266,120]
[393199646,1762312771392,500.0,0.00038266,120]
[393199647,1762312771625,500.0,0.00038266,120]
[393199648,1762312771858,500.0,0.00038266,120]
[393199649,1762312771991,365.38410309,0.00038266,120]
[393199650,1762312772083,500.0,0.00038266,120]
[393199651,1762312772322,500.0,0.00038266,120]
[393199652,1762312772565,500.0,0.00038266,120]
[393199653,1762312772807,500.0,0.00038266,120]
[393199654,1762312773052,485.39289337,0.00038266,120]
[393199655,1762312801443,500.0,0.00038266,120]
[393199656,1762312801696,500.0,0.00038266,120]
[393199657,1762312801945,500.0,0.00038266,120]
[393199658,1762312802191,500.0,0.00038266,120]
[393199659,1762312802431,500.0,0.00038266,120]
[393199660,1762312802894,500.0,0.00038266,120]
[393199661,1762312802975,500.0,0.00038266,120]
[393199662,1762312803224,500.0,0.00038266,120]
[393199663,1762312803474,500.0,0.00038266,120]
[393199664,1762312803717,500.0,0.00038266,120]
[393199665,1762312803971,500.0,0.00038266,120]
[393199666,1762312804426,500.0,0.00038266,120]
[393199667,1762312804674,500.0,0.00038266,120]
[393199668,1762312804922,500.0,0.00038266,120]
[393199669,1762312805188,500.0,0.00038266,120]
[393199670,1762312805436,500.0,0.00038266,120]
[393199671,1762312805685,500.0,0.00038266,120]
[393199672,1762312805925,500.0,0.00038266,120]
[393199673,1762312806161,192.72246523,0.00038266,120]
[393199674,1762312808406,500.0,0.00038266,120]
[393199675,1762312808670,500.0,0.00038266,120]
[393199676,1762312808941,500.0,0.00038266,120]
[393199677,1762312809236,524.67482348,0.00038266,120]
[393199678,1762312811075,394.18101083,0.00038266,120]
[393199679,1762312815311,500.0,0.00038266,120]
[393199680,1762312815579,500.0,0.00038266,120]
[393199681,1762312815811,514.61938071,0.00038266,120]
[393199682,1762312817805,1910.18,0.00038266,120]
[393199683,1762312818061,1910.18,0.00038266,120]
[393199684,1762312818304,1910.18,0.00038266,120]
[393199685,1762312818552,1910.18,0.00038266,120]
[393199686,1762312818848,1910.18,0.00038266,120]
[393199687,1762312819094,1910.18,0.00038266,120]
[393199688,1762312819335,1910.18,0.00038266,120]
[393199689,1762312819584,1910.18,0.00038266,120]